Cogmind - Beta 16 @@@ ROGUE MODE // 2025.12.19 @ 02:55:22 Player: AngelSpirit Result: Destroyed by G-34 Mercenary with Small Laser Performance ------------- Evolutions (0) 0 Regions Visited (1) 200 Robots Destroyed (9) 45 Value Destroyed (227) 227 Prototype IDs (0) 0 Alien Tech Used (0) 0 Bonus (0) 0 TOTAL SCORE: 472 Bonus ------- None Cogmind --------- Core Integrity 0/250 Matter 300/300 Energy 99/100 System Corruption 1% Temperature Cool (6) Movement Core (100) Ox1 Location -10/Materials Parts ------- > --- POWER (1) -------- (None) > --- PROPULSION (2) --- (None) > --- UTILITY (2) ------ Small Storage Unit Visual Processing Unit > --- WEAPON (2) ------- (None) > --- INVENTORY (8) ---- Light Ion Engine Peak State ------------ > --- POWER ------------ Light Ion Engine > --- PROPULSION ------- Wheel Compact Wheel > --- UTILITY ---------- Small Storage Unit Visual Processing Unit > --- WEAPON ----------- Assault Rifle Light Assault Rifle > --- INVENTORY -------- (None) [Rating: 8] Favorites ----------- Power Light Ion Engine Engine Light Ion Engine Propulsion Wheel Treads Light Treads Wheel Wheel Utility Small Storage Unit Storage Small Storage Unit Processor Visual Processing Unit Weapon Light Assault Rifle Ballistic Gun Light Assault Rifle Build | -11 -10 ------- Run | Yrd Mat Slots Evolved . | . . Power . | . . Propulsion . | . . Utility . | . . Weapon . | . . Parts Attached 11 | 7 4 Power 1 | 1 . Engine 1 | 1 . Core . | . . Reactor . | . . Propulsion 6 | 3 3 Treads 2 | 2 . Leg . | . . Wheel 4 | 1 3 Hover . | . . Flight . | . . Utility 2 | 1 1 Device . | . . Storage 1 | 1 . Processor 1 | . 1 Hackware . | . . Protection . | . . Artifact . | . . Weapon 2 | 2 . Energy Gun . | . . Energy Cannon . | . . Ballistic Gun 2 | 2 . Ballistic Cannon . | . . Launcher . | . . Special Weapon . | . . Impact Weapon . | . . Slashing Weapon . | . . Piercing Weapon . | . . Special Melee Weapon . | . . Unidentified Prototypes . | . . Parts Lost 6 | . 6 Power 1 | . 1 Propulsion 3 | . 3 Utility . | . . Weapon 2 | . 2 Highest Loss Streak 3 | . 3 To Critical Strikes . | . . Average Backups . | . . Power . | . . Propulsion . | . . Utility . | . . Weapon . | . . Tool/Special . | . . Unused Backups 1 | . 1 Power 1 | . 1 Propulsion . | . . Utility . | . . Weapon . | . . Tool/Special . | . . Average Slot Usage (%) 83 | . 83 Engine 12 | . 12 Treads 1 | . 1 Wheel 25 | . 25 Storage 14 | . 14 Processor 3 | . 3 Ballistic Gun 25 | . 25 Peak Build Rating 8 | 6 8 Average Rating 5 | 4 6 On Entrance 3 | . 6 Avg Prop Armor Cover (%) . | . . Naked Turns . | . . Heaviest Build 11 | 11 11 Greatest Support 40 | 40 40 Greatest Overweight (x) 1 | . 1 Average Overweight (x) . | . . Largest Inventory Capacity 8 | 8 8 Average Capacity 7 | 6 8 Most Carried 1 | 1 1 Average Carried . | . . Final Capacity 8 | 8 8 Final Carried 1 | 1 1 Class Distribution -------------------- 100% | Mutant Dominant Class ---------------- Mutant | -10/Materials Resources | -11 -10 ----------- Run | Yrd Mat Matter Collected 503 | 260 243 Remotely . | . . Salvage Created 390 | . 390 Parts 19 | . 19 Haulers Intercepted . | . . Recyclers Shooed 1 | . 1 Parts Field Recycled . | . . Retrieved Matter . | . . Parts Self-Destructed . | . . Prevented . | . . Parts Restored . | . . Kills | -11 -10 ------- Run | Yrd Mat Combat Hostiles Destroyed 5 | . 5 Guns 5 | . 5 Classes Destroyed 4 | . 4 Recycler 2 | . 2 Operator 1 | . 1 Watcher 1 | . 1 Grunt 5 | . 5 Best Kill Streak 4 | . 4 Combat Bots Only 3 | . 3 Max Kills in Single Turn 1 | . 1 Gunslinging . | . . Exploded . | . . Melee . | . . Uniques/NPCs Destroyed . | . . Combat | -11 -10 -------- Run | Yrd Mat Hostile Shots Fired 75 | . 75 Missed 21 | . 21 Hits 54 | . 54 Projectile 54 | . 54 Damage Taken 650 | . 650 Core 252 | . 252 Absorbed by Shields . | . . Core Remaining (%) 100 | 100 . Volleys Fired 56 | . 56 Largest 2 | . 2 Hottest 40 | . 40 Shots Fired 101 | . 101 Gun 101 | . 101 Cannon . | . . Launcher . | . . Special . | . . Kinetic 101 | . 101 Thermal . | . . Explosive . | . . Electromagnetic . | . . Robot Hit Streak 7 | . 7 Robot Miss Streak 3 | . 3 Penetration Max . | . . Secondary Targets 1 | . 1 Max Gunslinging Chain 1 | . 1 Shots Hit Robots 64 | . 64 Core Hits 24 | . 24 Critical Kills . | . . Critical Parts Destroyed . | . . Critical Strikes . | . . Melee Attacks . | . . Impact . | . . Slashing . | . . Piercing . | . . Sneak Attacks . | . . Combat Hostiles . | . . Follow-up Attacks . | . . Damage Inflicted 659 | . 659 Guns 657 | . 657 Cannons . | . . Explosions . | . . Melee . | . . Ramming 2 | . 2 Kinetic 657 | . 657 Thermal . | . . Explosive . | . . Electromagnetic . | . . Impact . | . . Slashing . | . . Piercing . | . . Highest Corruption 1 | . 1 Average Corruption 1 | . 1 Corruption Purged . | . . Corruption Blocked . | . . Effects 1 | . 1 Matter Fused 1 | . 1 Overload Shots . | . . Overflow Damage . | . . Projectiles . | . . Explosions . | . . Melee . | . . Knockbacks . | . . Impact . | . . Kinetic . | . . Secondary . | . . Self-Inflicted Damage 1 | . 1 Shots . | . . Rammed 2 | . 2 Targets Rammed 2 | . 2 Kicked . | . . Crushed . | . . Highest Temperature 22 | . 22 Average Temperature 7 | . 7 Received Heat Transfer 357 | . 357 Siege Activations . | . . Martial Activations . | . . Shielding Activations . | . . Robots Disrupted . | . . Combat Hostiles . | . . Robots Corrupted . | . . Combat Hostiles . | . . Parts Fried . | . . Impact Corruptions . | . . Robots Melted . | . . Combat Hostiles . | . . Parts Melted . | . . Heat Transferred . | . . Parts Sabotaged . | . . Parts Stolen . | . . Parts Stripped . | . . Power Chain Reactions . | . . Alert | -11 -10 ------- Run | Yrd Mat Maximum Alert Level . | . . Low Security (%) 100 | 100 100 Level 1 . | . . Level 2 . | . . Level 3 . | . . Level 4 . | . . Level 5 . | . . High Security . | . . Max Security . | . . Peak Influence 120 | . 120 Initial . | . . Average 30 | . 35 Influence Increases 177 | . 177 Destroy 0b10 Robot/C 100 | . 100 Destroy 0b10 Robot/NC 20 | . 20 Destroy Leader 22 | . 22 Successful Hack 5 | . 5 Lose Combat Pursuer 30 | . 30 Influence Decreases 176 | . 176 Time Decay 116 | . 116 Lost Part 60 | . 60 Squads Dispatched 3 | . 3 Investigation 1 | . 1 Extermination . | . . Reinforcement 2 | . 2 Assault . | . . Garrison . | . . Intercept . | . . Searches Triggered . | . . Construction Impeded . | . . Haulers Reinforced . | . . Active Scanning Responses . | . . Cargo Convoy Interrupts . | . . Stealth | -11 -10 --------- Run | Yrd Mat Distress Signals 3 | . 3 Communications Jammed . | . . Distress Signals . | . . Times Spotted 13 | . 13 Peak Tracking Total 5 | . 5 Tactical Retreats 1 | . 1 Traps | -11 -10 ------- Run | Yrd Mat Traps Triggered 2 | . 2 Indirectly . | . . Trap Hack Attempts . | . . Triggered . | . . Disarmed . | . . Reprogrammed . | . . Reused . | . . Traps Extracted . | . . Installed . | . . Triggered . | . . Machines | -11 -10 ---------- Run | Yrd Mat Machines Disabled . | . . Max in Single Turn . | . . Machines Repaired . | . . Machines Dismantled . | . . Machines Sabotaged . | . . Overloaded Fab Kills . | . . Hacking | -11 -10 --------- Run | Yrd Mat Machines Accessed 2 | . 2 Terminals 1 | . 1 Fabricators . | . . Repair Stations . | . . Recycling Units 1 | . 1 Scanalyzers . | . . Garrison Access . | . . Total Hacks 6 | . 6 Successful 3 | . 3 Failed 3 | . 3 Catastrophic 1 | . 1 Database Lockouts . | . . Manual 5 | . 5 Terminals 5 | . 5 Fabricators . | . . Repair Stations . | . . Recycling Units 1 | . 1 Scanalyzers . | . . Garrison Access . | . . Terminal Hacks 1 | . 1 Recall Reinforcements 1 | . 1 Fabricator Hacks . | . . Repair Station Hacks . | . . Recycling Unit Hacks 1 | . 1 Retrieve Components 1 | . 1 Scanalyzer . | . . Garrison Access Hacks . | . . Unauthorized Hacks 1 | . 1 Terminals 1 | . 1 Botnet 1 | . 1 Fabricators . | . . Repair Stations . | . . Recycling Units . | . . Scanalyzers . | . . Garrison Access . | . . Data Cores Recovered . | . . Used . | . . Hacking Detections 1 | . 1 Full Trace Events . | . . Feedback Events . | . . Feedback Blocked . | . . Robot Schematics Acquired . | . . Robots Built . | . . Authchips . | . . Time . | . . Total Robot Build Rating . | . . Part Schematics Acquired . | . . Parts Built . | . . Authchips . | . . Time . | . . Total Part Build Rating . | . . Part Studies Acquired . | . . Parts Repaired . | . . Time . | . . Parts Recycled . | . . Recycled Matter . | . . Retrieved Matter . | . . Retrieved Components 1 | . 1 Parts Scanalyzed . | . . Part Schematics Acquired . | . . Parts Damaged . | . . Bothacking | -11 -10 ------------ Run | Yrd Mat Used RIF Installer . | . . Robots Hacked . | . . Non-combat . | . . Combat . | . . Robot Hacks Applied . | . . Relay Couplers Released . | . . Fabnet Peak Effective % . | . . Robots Rewired . | . . Allies Hacked . | . . Hacks Repelled . | . . Allies | -11 -10 -------- Run | Yrd Mat Total Allies . | . . Largest Group . | . . Highest-Rated Group . | . . Highest-Rated Ally . | . . Total Orders . | . . Ally Attacks . | . . Total Damage . | . . Kills . | . . Allies Corrupted . | . . Allies Melted . | . . Intel | -11 -10 ------- Run | Yrd Mat Active Infowar (turns) 115 | . 115 Optics 115 | . 115 Robot Analysis Total . | . . Derelict Logs Recovered . | . . Drone Launches . | . . Drone Recoveries . | . . Exploration | -11 -10 ------------- Run | Yrd Mat Turns Passed 493 | 71 422 Spaces Moved 295 | 40 255 Core 7 | 1 6 Treads 44 | 35 9 Legs . | . . Wheels 244 | 4 240 Hover . | . . Flight . | . . Fastest Speed 50 | 50 80 Average Speed 100 | 151 92 Slowest Speed 160 | 160 160 Overloaded Moves . | . . Propulsion Burnouts . | . . Robots Hopped . | . . Potential Cave-ins . | . . Cave-ins Triggered . | . . Exploration Rate (%) 22 | 4 40 Regions Visited 1 Branch Regions . Pre-discovered Areas . | . . Known Exits Taken . | . . Unknown Exits Taken 1 | 1 . Scrap Searched . | . . Spaces Dug . | . . Terrain Destroyed . | . . Melee . | . . Projectile . | . . AOE . | . . Terrain Rammed . | . . Walls Destroyed . | . . Machines Disabled . | . . Actions | -11 -10 --------- Run | Yrd Mat Total 399 | 48 351 Wait 31 | . 31 Move 294 | 39 255 Hop . | . . Pick Up 2 | 1 1 Fast Attach 10 | 7 3 Attach 1 | . 1 Detach . | . . Swap . | . . Drop 3 | 1 2 Fire 56 | . 56 Melee . | . . Ram 2 | . 2 Kick . | . . Crush . | . . Escape Stasis . | . . Rewire . | . . Trap . | . . Miscellaneous . | . . Route ------- -11/Scrapyard -10/Materials (discovered 1 exit: [*Mat]) History --------- Turn | Location | Event 47 | -11/Scrapyard | Discovered new exit (range 15) 72 | -11/Scrapyard | Entered Materials 165 | -10/Materials | Discovered new exit (range 15) 300 | -10/Materials | Build established: Mutant 441 | -10/Materials | Core integrity fell below 50% 465 | -10/Materials | Lost 3 parts (1p1n1w) 490 | -10/Materials | Core integrity fell below 20% 494 | -10/Materials | Destroyed by G-34 Mercenary with Small Laser Last Messages --------------- 00472_ K-01 Serf collects debris. 00474_ Acquired 1 matter. 00474_ Com. Wheel destroyed. 00475_ Acquired 1 matter. 00476_ K-01 Serf collects debris. 00477_ Acquired 1 matter. 00479_ K-01 Serf collects debris. 00481_ Acquired 1 matter. 00482_ K-01 Serf collects debris. 00483_ Acquired 1 matter. 00483_ K-01 Serf collects debris. 00484_ Acquired 1 matter. 00484_ Lgt. Assault Rifle destroyed. 00485_ Slammed into G-34 Mercenary. 00485_ Destabilizing: System interference. 00485_ Visual Processing Unit temporarily disabled. 00485_ K-01 Serf collects debris. 00486_ Slammed into G-34 Mercenary. 00488_ Wheel destroyed. Map ----- +----------------------------------------------------+ | ??????????????? #???????? | | ????????????????? T #???????? | | ??????????????????????? ?????????? | | ????????????????????????????# !#??????????????? | | ????????????????????????????## %##??????????????? | | ?????????????????????????????# #???????????????? | | ?????????????????????????????# #???????????????? | | ?????????????????????????????# #???????????????? | | ?????????????????????????????# #???????????????? | | ???????????????########??????# #???????????????? | | ???????????????# #??????#% #???????????????? | | ???????????????# #??????# #???????????????? | | ???????????????# #??????# #???????????????? | | ???????????????# #??????# #???????????????? | | ???????????????# ######## #???????????????? | | ???????????????# %# #???????????????? | | ???????????????# %/g #???########????? | | ???????????????# #% #???# ????? | | ???????????????# # g ##########?# """???? | | ???????????????# # g# ?# """#??? | | ???????????????# # # ## """#??? | | ???????????????# # % # ## #??? | | ???????????????# # # ## """#??? | | ???????????????######## # """ """ ## """#??? | | ??????????????????????# r # """ """ ?# """#??? | | ??????????????????????# @#??"" ""???# #??? | | ????????????#??######## #####+##########+####### | | ????????????# ?#= # | | ????????????# # # | | ????????????# "T" # | | ????????????#### ########+######## # | | ???????????????#s #??# #???# # | | ???????????????# #??# """ #???# # | | ???????######### #??# """ #???# # | | ???????? # """ #??# """ #???# # | | ????????"""" # """ ## #??# #???# # | | ??????? """" # """ ## #??# / #???# | | ??????# """" # ##+#### "Y" ##### | | ??????# + # ## """ + " | | ??????# """" # # ## ##### | | ??????? """" # # ###########???# | | ????????"""" #%= # #?????????????## | | ???????? #== + #??????????????# | | ??????########## # "" #??????????????# | | ??????# ! ## # "Y #??????????????# | | ??????# """ ## # "" #?????????###### | | ??????# "T" ## # #?????????# | | ??????#= == ## ######?????????# | | ??????####+##### ### #??????????????# | | ?????????#% #?# < #??????????????# ##+#+ | +----------------------------------------------------+ Best States ------------- Heat Dissipation 25 Energy Generation 10 Energy Capacity 125 Matter Stores 300 Matter Capacity 300 Sight Range 18 Terrain Scan Density 10 Evasion (%) 42 Recoil Reduction 2 Item Schematics ----------------- None Robot Schematics ------------------ None Fabricated ------------ Nothing Repaired ---------- Nothing Studied --------- None Alien Tech Used ----------------- None Achievements -------------- None Challenges ------------ None Game ------ Seed SpliceHybridDevice Manual? 0 Play Time 00:07:02 Cumulative 313.8 hours Start 2025.12.19 @ 02:50:36 End 2025.12.19 @ 02:55:22 Sessions 1 Manual Loads 0 Difficulty Rogue Special Mode None Game No. 116 Rogue 116 Adventurer 0 Explorer 0 Win Type - Total 3 Types 2/0/0/0/0/0/0/0/0/1 Lore% 75 Gallery% 70 Achievement% 59 Wizard Run 0 Options --------- Layout 1 ASCII 0 Keyboard 0 Movement Mouse Keybinds 0 Fullscreen 2 Font 32/SmallcapsGlow Map View 50x35 Zoom Use 0% Tactical HUD 1 Map Filters NONE Filters NONE Steam 1 RUN: 26c45733-041d-491b-bebe-53da49f6ce97